bitfinex/quotes_SOLUSD_20240705
["timestamp","ask_amount","ask_price","bid_price","bid_amount"]
[1720169315173,8.1136,123.25,123.19,6.3514]
[1720169315399,28.1148,123.24,123.19,6.3514]
[1720169315613,20.0,123.24,123.19,6.3514]
[1720169315979,20.0,123.28,123.19,6.3514]
[1720169316297,8.1129,123.26,123.19,6.3514]
[1720169316495,28.1135,123.25,123.19,6.3514]
[1720169316687,8.1135,123.25,123.19,6.3514]
[1720169317004,20.0,123.24,123.19,6.3514]
[1720169317805,8.3928456,123.27,123.19,6.3514]
[1720169317806,20.0,123.25,123.19,6.3514]
[1720169318105,28.1129,123.26,123.19,6.3514]
[1720169318303,8.1131,123.26,123.19,6.3514]
[1720169318485,20.0,123.28,123.19,6.3514]
[1720169318887,8.1124,123.27,123.19,6.3514]
[1720169319100,20.0,123.26,123.19,6.3514]
[1720169319818,8.39073754,123.29,123.23,8.1142]
[1720169320029,15.751,123.33,123.23,6.4426]
[1720169320310,8.1077,123.34,123.23,6.4426]
[1720169321085,8.1084,123.33,123.23,6.4426]
[1720169321406,8.38609593,123.36,123.23,6.4426]
[1720169321407,8.1091,123.32,123.23,6.4426]
[1720169321704,8.1094,123.32,123.23,6.4426]
[1720169321909,20.2678,123.35,123.23,6.4426]
[1720169322108,8.111,123.29,123.23,6.4426]
[1720169322290,1.87342067,123.28,123.23,6.4426]
[1720169323205,8.38609593,123.36,123.28,16.43]
[1720169323592,52.1,123.41,123.29,6.0839]
[1720169323796,8.1051,123.38,123.29,6.0839]
[1720169324101,16.43,123.42,123.29,6.0839]
[1720169324403,8.38739332,123.41,123.29,6.0839]
[1720169325408,8.1044,123.39,123.29,6.0839]
[1720169325709,8.1043,123.39,123.29,6.0839]
[1720169326416,8.1053,123.38,123.29,6.0839]
[1720169326709,8.1045,123.39,123.29,6.0839]
[1720169326887,8.1037,123.4,123.29,6.0839]
[1720169327213,8.38739332,123.41,123.29,6.0839]
[1720169327417,8.1012,123.44,123.3,100.17]
[1720169327583,20.2499,123.46,123.31,6.1678]
[1720169327584,28.3830536,123.43,123.31,6.1678]
[1720169328299,8.1037,123.41,123.31,6.1678]
[1720169328513,28.104,123.4,123.31,6.1678]
[1720169328719,8.1045,123.39,123.31,6.1678]
[1720169328917,20.17,123.38,123.31,6.1678]
[1720169329212,8.1088,123.33,123.31,6.1678]
[1720169329533,0.17,123.38,123.31,6.1678]
[1720169329534,8.1076,123.34,123.31,6.1678]
[1720169329746,0.17,123.35,123.31,6.1678]
[1720169330032,8.1072,123.35,123.31,6.1678]
[1720169330609,28.2764,123.36,123.31,6.1678]
[1720169330807,20.0,123.36,123.31,6.1678]
[1720169331008,52.1,123.4,123.31,6.1678]
[1720169331319,20.0,123.39,123.31,6.1678]
[1720169331519,20.0,123.4,123.31,6.1678]
[1720169331720,8.1026,123.42,123.31,6.1678]
[1720169332038,8.1034,123.41,123.31,6.1678]
[1720169332212,8.1025,123.42,123.31,6.1678]
[1720169332605,8.1033,123.41,123.31,6.1678]
[1720169332834,8.1058,123.37,123.31,6.1678]
[1720169333011,8.3830536,123.43,123.31,6.1678]
[1720169333215,40.257,123.42,123.31,6.1678]
[1720169333420,20.0,123.42,123.31,6.1678]
[1720169333643,8.1038,123.4,123.31,6.1678]
[1720169334134,8.1057,123.37,123.31,6.1678]
[1720169334632,8.1058,123.37,123.31,6.1678]
[1720169335005,0.17,123.38,123.31,6.1678]
[1720169335402,8.1048,123.39,123.31,6.1678]
[1720169336058,8.1039,123.4,123.31,6.1678]
[1720169336269,20.0,123.39,123.31,6.1678]
[1720169336435,8.3830536,123.43,123.31,6.1678]
[1720169336639,16.4849536,123.43,123.31,6.1678]
[1720169337063,8.1024,123.42,123.31,6.1678]
[1720169337643,8.3830536,123.43,123.31,6.1678]
[1720169337837,8.3830536,123.43,123.32,15.6912]
[1720169338056,52.1,123.48,123.33,100.0]
[1720169338370,8.39986839,123.46,123.32,15.8612]
[1720169338543,8.1015,123.44,123.33,0.17]
[1720169339139,8.1015,123.44,123.34,6.1849]
[1720169339854,8.39986839,123.46,123.34,6.1849]
[1720169339855,8.1004,123.45,123.34,6.1849]
[1720169340165,16.49966839,123.46,123.34,6.1849]
[1720169340335,20.0,123.45,123.35,16.2019]
[1720169341347,20.0,123.46,123.35,16.2019]
[1720169341544,20.0,123.46,123.35,16.0319]
[1720169341773,8.1009,123.45,123.35,16.0319]
[1720169341932,28.0999,123.46,123.35,16.0319]
[1720169342762,8.1004,123.45,123.35,16.0319]
[1720169343166,20.0,123.46,123.35,16.0319]
[1720169343341,52.27,123.45,123.35,16.0319]
[1720169343546,20.0,123.44,123.35,16.0319]
[1720169343743,8.1036,123.41,123.35,16.0319]
[1720169344044,8.1041,123.4,123.35,16.0319]
[1720169344353,20.4248,123.43,123.35,16.0319]
[1720169344562,8.1047,123.39,123.34,6.1849]
[1720169344761,8.1069,123.36,123.34,6.1849]
[1720169344940,72.359,123.41,123.34,6.1849]
[1720169344941,8.1049,123.39,123.34,6.1849]
[1720169345143,72.359,123.41,123.34,6.1849]
[1720169345144,28.1053,123.38,123.34,6.1849]
[1720169345338,20.0,123.42,123.34,6.1849]
[1720169345554,8.1031,123.41,123.34,6.1849]
[1720169345740,20.0,123.42,123.34,6.1849]
[1720169345741,28.1025,123.42,123.34,6.1849]
[1720169345936,52.1,123.45,123.34,6.1849]
[1720169346460,8.1034,123.41,123.34,6.1849]
[1720169347040,52.1,123.45,123.34,6.1849]
[1720169347465,8.1028,123.42,123.34,6.1849]
[1720169347867,52.1,123.45,123.34,6.1849]
[1720169348167,8.1022,123.43,123.34,6.1849]
[1720169348377,52.1,123.45,123.34,6.1849]
[1720169348542,8.1016,123.44,123.34,6.1849]
[1720169348743,8.1006,123.45,123.35,16.1901]
[1720169349273,8.40429234,123.48,123.35,16.1901]
[1720169349475,16.50299234,123.48,123.37,6.3693]
[1720169349651,8.0992,123.47,123.37,6.3693]
[1720169350051,134.7262,123.54,123.37,6.3693]
[1720169350052,52.1,123.54,123.37,6.3693]
[1720169350253,72.3373,123.54,123.38,15.8592]
[1720169350557,8.40264043,123.51,123.38,15.8592]
[1720169350765,8.098,123.49,123.38,15.8592]
[1720169350957,20.2401,123.52,123.38,15.8592]
[1720169351159,8.0979,123.49,123.38,15.6892]
[1720169351371,8.0973,123.5,123.38,15.6892]
[1720169351671,20.2401,123.52,123.38,15.6892]
[1720169351974,8.40246975,123.53,123.41,6.3366]
[1720169352282,8.0944,123.55,123.42,0.17]
[1720169352468,9.23632657,123.56,123.42,0.17]
[1720169352647,8.0958,123.52,123.42,0.17]
[1720169353070,8.0953,123.53,123.42,0.17]
[1720169353276,8.0965,123.51,123.41,6.3366]
[1720169353485,29.46982657,123.56,123.41,6.3366]
[1720169353486,20.2367,123.54,123.41,6.3366]
[1720169353652,8.0962,123.52,123.41,6.3366]
[1720169354473,8.0967,123.51,123.41,6.3366]
[1720169354866,9.23632657,123.56,123.42,0.17]
[1720169355068,8.0947,123.54,123.42,0.17]
[1720169355367,28.0954,123.53,123.42,0.17]
[1720169355553,8.0954,123.53,123.42,0.17]
[1720169355752,17.33002657,123.56,123.43,122.2009]
[1720169355957,17.33002657,123.56,123.44,0.17]
[1720169355958,8.9317713,123.56,123.44,0.17]
[1720169356577,8.9317713,123.56,123.45,6.0477]
[1720169356784,0.8380713,123.56,123.47,6.0477]
[1720169356993,0.8380713,123.56,123.47,106.0477]
[1720169357173,16.48056898,123.6,123.48,6.1907]
[1720169357490,8.0887,123.63,123.5,6.0207]
[1720169357788,8.0887,123.63,123.51,0.17]
[1720169357968,24.34,123.64,123.51,0.17]
[1720169357969,24.34,123.62,123.51,0.17]
[1720169358299,8.091,123.6,123.5,6.0207]
[1720169358596,8.0907,123.6,123.5,6.0207]
[1720169359169,8.089,123.63,123.5,6.0207]
[1720169359478,24.34,123.64,123.5,6.0207]
[1720169359662,64.562,123.63,123.51,0.17]
[1720169359858,64.562,123.63,123.5,6.0207]
[1720169360057,24.34,123.61,123.5,6.0207]
[1720169360258,20.0,123.6,123.5,6.0207]
[1720169361084,44.567,123.6,123.5,6.0207]
[1720169361294,20.0,123.59,123.5,6.0207]
[1720169361592,8.092,123.58,123.5,6.0207]
[1720169362066,8.0931,123.57,123.5,6.0207]
[1720169362265,8.092,123.58,123.5,6.0207]
[1720169362458,20.0,123.59,123.5,6.0207]
[1720169362666,8.0907,123.6,123.5,6.0207]
[1720169362968,64.5625,123.63,123.5,6.0207]
[1720169363158,8.092,123.58,123.5,6.0207]
[1720169363362,8.0913,123.59,123.5,6.0207]
[1720169364793,8.0913,123.59,123.51,0.17]
[1720169364997,8.0884,123.64,123.52,21.9092]
[1720169365169,8.0884,123.64,123.53,0.17]
[1720169365373,20.2174,123.66,123.54,6.0688]
[1720169365374,8.0887,123.63,123.54,6.0688]
[1720169365766,20.2174,123.66,123.54,6.0688]
[1720169366088,20.2266,123.6,123.54,6.0688]
[1720169366286,8.093,123.57,123.54,6.0688]
[1720169366495,8.0931,123.57,123.54,6.0688]
[1720169366698,20.0,123.59,123.54,6.0688]
[1720169366878,8.0938,123.55,123.54,6.0688]
[1720169367508,8.0933,123.56,123.54,6.0688]
[1720169367690,8.0938,123.55,123.54,6.0688]
[1720169368187,44.34,123.59,123.52,15.8404]
[1720169368499,8.0927,123.57,123.52,15.8404]
[1720169368886,8.0932,123.56,123.52,15.8404]
[1720169369701,64.5686,123.59,123.52,15.8404]
[1720169369910,24.34,123.54,123.5,6.0769]
[1720169370109,44.34,123.53,123.47,16.504]
[1720169370288,8.0977,123.5,123.47,16.504]
[1720169370490,20.0,123.49,123.47,16.504]
[1720169370994,28.0979,123.49,123.47,16.504]
[1720169371394,28.0979,123.49,123.45,6.4488]
[1720169372211,76.3,123.53,123.45,6.4488]
[1720169372513,20.0,123.52,123.45,6.4488]
[1720169372817,8.0947,123.54,123.45,6.4488]
[1720169373015,44.34,123.55,123.45,6.4488]
[1720169373016,28.0952,123.53,123.45,6.4488]
[1720169373217,20.0,123.53,123.45,6.4488]
[1720169373511,28.0953,123.53,123.45,6.4488]
[1720169373729,8.0959,123.52,123.45,6.4488]
[1720169373902,20.0,123.51,123.45,6.4488]
[1720169374098,8.0967,123.51,123.45,6.4488]
[1720169374305,20.0,123.53,123.45,6.4488]
[1720169374613,44.34,123.54,123.45,6.4488]
[1720169374804,8.0965,123.51,123.45,6.4488]
[1720169375224,8.0973,123.5,123.45,6.4488]
[1720169375442,44.34,123.54,123.45,6.4488]
[1720169375443,8.0986,123.48,123.45,6.4488]
[1720169375729,20.0,123.49,123.45,6.4488]
[1720169376512,28.0978,123.49,123.45,6.4488]
[1720169377026,8.0984,123.48,123.45,6.4488]
[1720169377608,20.0,123.47,123.45,6.4488]
[1720169377801,8.0997,123.46,123.43,15.6092]
[1720169378015,20.0,123.49,123.43,15.6092]
[1720169378323,44.34,123.49,123.43,15.6092]
[1720169378511,8.0986,123.48,123.43,15.6092]
[1720169378710,20.0,123.47,123.43,15.6092]
[1720169378906,28.098,123.49,123.43,15.6092]
[1720169379104,8.0985,123.48,123.43,15.6092]
[1720169379311,20.0,123.47,123.43,15.6092]
[1720169379710,28.0993,123.47,123.43,15.6092]
[1720169380635,20.0,123.47,123.43,15.6092]
[1720169381230,28.0992,123.47,123.43,15.6092]
[1720169381534,20.0,123.47,123.43,15.6092]
[1720169381920,8.1,123.46,123.43,15.6092]
[1720169382236,28.0995,123.47,123.43,15.6092]
[1720169382443,28.0995,123.47,123.41,6.2158]
[1720169382444,20.0,123.47,123.41,6.2158]
[1720169382622,8.1005,123.45,123.41,6.2158]
[1720169382932,20.0,123.47,123.34,22.8983]
[1720169383117,8.1031,123.41,123.34,22.8983]
[1720169383434,8.1033,123.41,123.34,22.8983]
[1720169383803,8.1026,123.42,123.34,22.8983]
[1720169384333,8.1031,123.41,123.34,22.8983]
[1720169384637,8.1025,123.42,123.34,22.8983]
[1720169384816,20.0,123.41,123.34,22.8983]
[1720169385536,20.0,123.42,123.34,22.8983]
[1720169385833,62.8616,123.45,123.34,22.8983]
[1720169385834,64.5948,123.43,123.34,22.8983]
[1720169386017,8.1044,123.39,123.34,22.8983]
[1720169386222,44.34,123.43,123.34,22.8983]
[1720169386646,8.1041,123.4,123.34,22.8983]
[1720169386852,28.1044,123.39,123.34,22.8983]
[1720169387356,20.0,123.39,123.34,22.8983]
[1720169387523,20.0,123.4,123.34,22.8983]
[1720169387720,8.1039,123.4,123.34,22.8983]
[1720169387934,20.0,123.41,123.34,22.8983]
[1720169388137,8.39896869,123.43,123.34,22.8983]
[1720169388320,8.0978,123.49,123.38,15.2127]
[1720169388527,8.0978,123.49,123.39,6.5265]
[1720169388955,8.0973,123.5,123.39,6.5265]
[1720169389167,8.0973,123.5,123.4,0.17]
[1720169389660,20.2425,123.51,123.4,0.17]
[1720169389962,8.0987,123.48,123.4,0.17]
[1720169390158,20.0,123.47,123.4,0.17]
[1720169390665,20.0,123.47,123.39,6.5265]
[1720169391163,44.5799,123.52,123.39,6.5265]
[1720169391164,8.0969,123.51,123.4,15.0512]
[1720169391365,8.0958,123.52,123.41,6.6552]
[1720169391745,8.0979,123.49,123.41,6.4852]
[1720169392451,8.0973,123.5,123.41,6.4852]
[1720169392763,8.0978,123.49,123.41,6.4852]
[1720169393337,8.0973,123.5,123.41,6.4852]
[1720169393658,24.34,123.53,123.41,6.4852]
[1720169393963,14.89169626,123.54,123.41,106.4852]
[1720169394172,15.0,123.62,123.43,122.245]
[1720169394361,8.0934,123.56,123.44,6.2639]
[1720169394535,8.0939,123.55,123.44,6.2639]
[1720169394740,8.0948,123.54,123.44,6.2639]
[1720169395774,24.34,123.55,123.44,6.0939]
[1720169396483,8.0954,123.53,123.44,6.0939]
[1720169396652,8.0967,123.51,123.44,6.0939]
[1720169397167,8.0949,123.54,123.44,6.0939]
[1720169397368,20.0,123.53,123.44,6.0939]
[1720169397671,8.0941,123.55,123.45,0.17]
[1720169397843,8.0952,123.53,123.44,6.0939]
[1720169398265,8.0961,123.52,123.44,6.0939]
[1720169398755,28.0947,123.54,123.44,6.0939]
[1720169399056,20.0,123.54,123.44,6.0939]
[1720169399373,28.0947,123.54,123.45,0.17]
[1720169399892,8.0963,123.52,123.44,6.0939]
[1720169400047,20.0,123.54,123.44,6.0939]
[1720169400378,20.0,123.54,123.45,0.17]
[1720169400565,8.0943,123.55,123.45,0.17]
[1720169400875,8.0942,123.55,123.45,0.17]
[1720169401052,24.34,123.55,123.44,6.0939]
[1720169401272,40.4035,123.56,123.44,6.0939]
[1720169401457,64.5735,123.56,123.44,6.0939]
[1720169401775,8.0941,123.55,123.44,6.0939]
[1720169401979,8.0941,123.55,123.45,0.17]
[1720169402479,50.7024,123.58,123.48,15.7041]
[1720169402683,20.2246,123.62,123.48,15.7041]
[1720169402684,42.61,123.62,123.48,15.7041]
[1720169402848,8.0914,123.59,123.48,15.7041]
[1720169403055,83.058,123.62,123.49,0.17]
[1720169403370,8.0936,123.56,123.48,15.7041]
[1720169403571,8.0925,123.58,123.48,15.7041]
[1720169403956,24.34,123.61,123.48,115.7041]
[1720169404158,57.50223767,123.62,123.49,6.1581]
[1720169404371,8.0918,123.59,123.49,6.1581]
[1720169404758,8.0921,123.58,123.49,6.1581]
[1720169404958,8.0908,123.6,123.49,106.1581]
[1720169405154,8.0902,123.61,123.5,0.17]
[1720169405366,20.0,123.6,123.5,0.17]
[1720169405770,8.0865,123.67,123.54,6.5787]
[1720169405970,8.0867,123.66,123.56,6.5787]
[1720169406561,8.0873,123.65,123.56,6.5787]
[1720169407176,8.088,123.64,123.56,6.5787]
[1720169407358,8.0889,123.63,123.56,6.5787]
[1720169407558,8.088,123.64,123.56,6.5787]
[1720169408455,67.7880713,123.68,123.56,6.5787]
[1720169408684,8.0862,123.67,123.56,6.5787]
[1720169408866,8.0868,123.66,123.56,6.5787]
[1720169409187,75.8740713,123.68,123.56,6.5787]
[1720169409380,8.0862,123.67,123.57,16.6366]
[1720169409558,8.0872,123.66,123.57,16.6366]
[1720169409758,24.34,123.64,123.57,16.6366]
[1720169410064,0.8380713,123.68,123.57,16.6366]
[1720169410065,20.0,123.63,123.57,16.6366]
[1720169410269,20.0,123.64,123.57,16.6366]
[1720169410466,20.0,123.67,123.57,16.6366]
[1720169410986,8.0884,123.64,123.57,16.6366]
[1720169411206,20.0,123.67,123.57,16.6366]
[1720169411367,28.0865,123.67,123.57,16.6366]
[1720169411568,8.0865,123.67,123.57,16.6366]
[1720169412596,8.0861,123.67,123.57,16.6366]
[1720169412770,8.0875,123.65,123.57,16.6366]
[1720169412973,8.0887,123.63,123.57,16.6366]
[1720169413184,24.34,123.64,123.57,16.6366]
[1720169413369,44.5633,123.62,123.56,6.5787]
[1720169413579,8.092,123.58,123.56,6.5787]
[1720169414176,8.0915,123.59,123.56,6.5787]
[1720169414373,144.7319,123.66,123.56,6.5787]
[1720169414374,20.2198,123.65,123.56,6.5787]
[1720169414579,8.0885,123.64,123.56,6.5787]
[1720169414781,50.6973,123.66,123.56,6.5787]
[1720169414987,50.6969,123.66,123.56,6.5787]
[1720169415275,8.0874,123.65,123.56,6.5787]
[1720169415601,8.0877,123.65,123.56,6.5787]
[1720169415997,8.0867,123.66,123.57,15.6715]
[1720169416198,20.0,123.65,123.57,15.6715]
[1720169416398,28.0874,123.65,123.57,15.6715]
[1720169417004,0.8380713,123.68,123.57,15.6715]
[1720169417372,8.9234713,123.68,123.57,15.6715]
[1720169417574,8.0861,123.67,123.57,15.6715]
[1720169417770,0.8380713,123.68,123.57,15.6715]
[1720169418075,8.0864,123.67,123.57,15.6715]
[1720169418274,0.8380713,123.68,123.57,15.6715]
[1720169418806,0.8380713,123.68,123.59,6.1155]
[1720169418970,4.63309762,123.71,123.6,0.17]
[1720169419174,0.8380713,123.8,123.66,6.1155]
[1720169419409,7.07269828,123.8,123.67,0.17]
[1720169419573,32.4188,123.79,123.67,0.17]
[1720169419773,8.0793,123.78,123.67,0.17]
[1720169419995,8.0783,123.79,123.67,0.17]
[1720169420195,8.9156713,123.8,123.68,22.1515]
[1720169420379,0.8380713,123.8,123.69,0.17]
[1720169420801,0.8380713,123.8,123.68,22.1515]
[1720169421683,24.34,123.79,123.68,22.1515]
[1720169422000,8.0789,123.78,123.68,22.1515]
[1720169422499,24.34,123.78,123.68,22.1515]
[1720169422711,8.0809,123.75,123.68,22.1515]
[1720169423398,8.081,123.75,123.68,22.1515]
[1720169423572,24.51,123.76,123.68,22.1515]
[1720169423573,8.2507,123.76,123.68,22.1515]
[1720169423773,28.0812,123.75,123.68,22.1515]
[1720169423975,20.0,123.75,123.68,22.1515]
[1720169424203,8.0809,123.75,123.68,20.3315]
[1720169424577,28.0799,123.77,123.68,20.3315]
[1720169424980,20.0,123.77,123.68,20.3315]
[1720169425191,8.9159713,123.8,123.68,20.3315]
[1720169425390,0.8380713,123.8,123.68,20.3315]
[1720169425595,8.08,123.77,123.68,20.3315]
[1720169425980,8.0801,123.76,123.68,20.3315]
[1720169426183,8.0794,123.78,123.68,20.3315]
[1720169426379,25.1780713,123.8,123.68,20.3315]
[1720169426380,8.0782,123.79,123.68,20.3315]
[1720169426598,8.9155713,123.8,123.68,20.3315]
[1720169426788,8.0783,123.79,123.68,20.3315]
[1720169426987,25.1780713,123.8,123.68,20.3315]
[1720169427206,8.0796,123.77,123.68,20.3315]
[1720169427600,8.0815,123.74,123.68,20.3315]
[1720169427993,8.0809,123.75,123.68,20.3315]
[1720169428194,24.34,123.77,123.68,20.3315]
[1720169428497,62.8058,123.79,123.68,20.3315]
[1720169428498,20.0,123.76,123.68,20.3315]
[1720169428685,8.0797,123.77,123.68,20.3315]
[1720169429380,8.0786,123.79,123.68,20.3315]
[1720169430718,35.365,123.9,123.71,6.6233]
[1720169431008,20.1842,123.86,123.71,6.6233]
[1720169431216,20.1909,123.82,123.71,6.6233]
[1720169431428,8.0786,123.79,123.71,6.6233]
[1720169432007,8.0766,123.82,123.71,6.6233]
[1720169432207,20.1817,123.88,123.72,0.17]
[1720169432517,24.34,123.86,123.72,0.17]
[1720169432718,8.076,123.83,123.72,0.17]
[1720169433016,42.93231359,123.86,123.72,0.17]
[1720169433224,42.93231359,123.86,123.73,6.6403]
[1720169433517,42.93231359,123.86,123.74,16.2732]
[1720169434094,8.0767,123.82,123.74,16.2732]
[1720169434416,8.0757,123.83,123.74,16.2732]
[1720169434596,8.0751,123.84,123.75,0.17]
[1720169434798,8.0751,123.84,123.74,16.2732]
[1720169435094,42.93231359,123.86,123.74,16.2732]
[1720169435314,8.0773,123.81,123.74,16.2732]
[1720169435514,8.0766,123.82,123.74,16.2732]
[1720169436020,8.0769,123.81,123.74,16.2732]
[1720169437027,8.0765,123.82,123.74,16.2732]
[1720169437318,8.0762,123.82,123.74,16.2732]
[1720169437831,0.17,123.81,123.74,16.2732]
[1720169438117,8.0804,123.76,123.73,6.6403]
[1720169438796,8.0829,123.72,123.7,15.158]
[1720169439291,8.0829,123.72,123.62,15.7127]
[1720169439902,24.34,123.76,123.62,23.8019]
[1720169440127,8.0832,123.72,123.62,15.7127]
[1720169440294,64.7125,123.75,123.62,15.7127]
[1720169440494,8.0833,123.72,123.62,15.7127]
[1720169440723,64.7125,123.75,123.62,15.7127]
[1720169440924,8.0851,123.69,123.62,15.7127]
[1720169441102,44.5461,123.73,123.62,15.7127]
[1720169441314,8.0849,123.69,123.62,15.7127]
[1720169441603,8.084,123.7,123.62,15.7127]
[1720169441816,28.0847,123.69,123.63,6.5252]
[1720169442907,20.0,123.69,123.63,6.5252]
[1720169443104,44.51,123.72,123.63,6.5252]
[1720169443325,8.0847,123.69,123.63,6.5252]
[1720169443933,44.51,123.72,123.63,6.5252]
[1720169444238,8.0841,123.7,123.63,6.5252]
[1720169444405,20.0,123.69,123.63,6.5252]
[1720169445225,28.0847,123.69,123.63,6.5252]
[1720169446137,20.0,123.69,123.63,6.5252]
[1720169446505,28.0848,123.69,123.63,6.5252]
[1720169446707,8.0867,123.66,123.63,6.5252]
[1720169447111,44.5539,123.68,123.63,6.5252]
[1720169447315,20.17,123.67,123.63,6.5252]
[1720169447822,8.0867,123.66,123.63,6.5252]
[1720169448138,20.0,123.67,123.63,6.5252]
[1720169448340,20.0,123.68,123.63,6.5252]
[1720169448642,8.0867,123.66,123.63,6.5252]
[1720169448937,8.0882,123.64,123.59,6.3555]
[1720169449128,20.0,123.65,123.59,6.3555]
[1720169449737,8.0882,123.64,123.59,6.3555]
[1720169450046,8.0875,123.65,123.59,6.3555]
[1720169450342,20.0,123.64,123.59,6.3555]
[1720169451040,8.088,123.64,123.59,6.3555]
[1720169452912,50.9144998,123.68,123.59,6.3555]
[1720169453220,6.3604998,123.68,123.59,6.3555]
[1720169453418,0.17,123.69,123.59,6.3555]
[1720169453629,8.4386098,123.7,123.59,6.3555]
[1720169453815,8.0871,123.66,123.59,6.3555]
[1720169454138,8.4386098,123.7,123.59,6.3555]
[1720169454346,8.086,123.67,123.59,6.3555]
[1720169454636,26.66941779,123.71,123.59,6.3555]
[1720169454637,8.0855,123.68,123.59,6.3555]
[1720169455414,8.085,123.69,123.59,6.3555]
[1720169455641,6.46071779,123.71,123.59,106.3555]
[1720169455944,8.0841,123.7,123.61,22.4798]
[1720169456119,8.0836,123.71,123.62,0.17]
[1720169456445,52.98034421,123.74,123.61,22.4798]
[1720169456643,44.5469,123.72,123.61,22.4798]
[1720169456813,8.0857,123.68,123.61,22.4798]
[1720169457348,7.0857,123.68,123.61,22.4798]
[1720169457519,44.5502,123.7,123.61,22.4798]
[1720169457706,8.0865,123.67,123.61,22.4798]
[1720169457911,8.0854,123.68,123.61,22.4798]
[1720169458931,8.0849,123.69,123.61,22.4798]
[1720169459124,20.0,123.67,123.61,22.4798]
[1720169459723,28.0847,123.69,123.61,22.4798]
[1720169460034,20.0,123.69,123.61,22.4798]
[1720169460215,8.0836,123.71,123.61,22.4798]
[1720169460216,20.0,123.7,123.61,22.4798]
[1720169460415,28.0845,123.7,123.61,22.4798]
[1720169460625,75.36544421,123.74,123.61,22.4798]
[1720169460830,20.2072,123.72,123.61,22.4798]
[1720169461042,75.36544421,123.74,123.61,22.4798]
[1720169461215,8.0829,123.72,123.62,0.17]
[1720169461847,8.0824,123.73,123.63,6.439]
[1720169462148,8.0827,123.72,123.63,6.439]
[1720169462718,8.0835,123.71,123.63,6.439]
[1720169462944,8.083,123.72,123.63,6.439]
[1720169463443,20.0,123.71,123.63,6.439]
[1720169463741,28.0836,123.71,123.63,6.439]
[1720169463939,20.0,123.71,123.63,6.439]
[1720169464112,8.0854,123.68,123.63,6.439]
[1720169464512,20.0,123.71,123.63,6.439]
[1720169464513,8.0845,123.7,123.63,6.439]
[1720169464736,20.0,123.69,123.63,6.439]
[1720169464939,28.0848,123.69,123.63,6.439]
[1720169465114,8.0861,123.67,123.63,6.439]
[1720169465536,28.0848,123.69,123.63,6.439]
[1720169465953,20.0,123.69,123.63,6.439]
[1720169466124,20.0,123.7,123.63,6.439]
[1720169466438,20.0,123.71,123.63,6.439]
[1720169466822,28.0835,123.71,123.63,6.439]
[1720169467025,14.51799759,123.72,123.63,6.439]
[1720169467460,6.43509759,123.72,123.63,6.439]
[1720169467625,8.0823,123.73,123.63,6.439]
[1720169468026,8.0828,123.72,123.63,6.439]
[1720169468221,20.0,123.71,123.63,6.439]
[1720169469012,28.0835,123.71,123.63,6.439]
[1720169469737,20.0,123.71,123.63,6.439]
[1720169470648,44.32,123.71,123.63,6.439]
[1720169470814,44.7002,123.7,123.63,6.439]